bitfinex/quotes_ETHUSD_20260228
["timestamp","ask_amount","ask_price","bid_price","bid_amount"]
[1772265840280,3.5403782,1860.4,1859.7,4.90069258]
[1772265840562,3.5403782,1860.4,1859.7,1.34425455]
[1772265840740,1.34372801,1860.5,1859.8,3.55643803]
[1772265840940,3.15850889,1860.8,1860.1,3.55643803]
[1772265841134,1.34350889,1860.8,1860.0,3.55643803]
[1772265841331,3.5403782,1861.0,1860.2,3.55643803]
[1772265841734,5.37259024,1861.3,1860.5,7.30694094]
[1772265841735,3.5403782,1861.3,1860.5,7.30694094]
[1772265841940,3.5403782,1861.3,1860.5,3.55643803]
[1772265842162,3.15904487,1861.5,1860.5,3.55643803]
[1772265842367,5.3553782,1861.5,1860.5,3.55643803]
[1772265842663,3.5403782,1861.5,1860.6,3.55643803]
[1772265842867,3.5403782,1861.5,1860.7,4.9000184]
[1772265843161,4.8833814,1861.5,1860.7,4.9000184]
[1772265843381,3.5403782,1861.4,1860.5,10.58804837]
[1772265843667,3.5403782,1861.4,1860.6,3.55643803]
[1772265844267,6.64829595,1861.7,1860.7,3.55643803]
[1772265844440,3.5403782,1861.6,1860.7,3.55643803]
[1772265844755,3.5403782,1861.6,1860.7,5.21343803]
[1772265844951,4.88335916,1861.6,1860.8,1.34350816]
[1772265845349,4.88335916,1861.6,1860.8,4.89994619]
[1772265845736,3.5403782,1861.6,1860.9,3.55643803]
[1772265846767,3.5403782,1862.0,1861.1,3.55643803]
[1772265847062,0.001,1862.2,1861.5,4.89944098]
[1772265847569,0.001,1862.2,1861.6,3.55643803]
[1772265847739,0.001,1862.2,1861.5,2.99900295]
[1772265847940,0.001,1862.2,1861.5,1.34300295]
[1772265848279,0.001,1862.2,1861.5,2.99900295]
[1772265848941,0.001,1862.2,1861.5,10.30594389]
[1772265851444,0.001,1862.2,1861.5,6.55544098]
[1772265851866,3.41980459,1862.1,1861.2,8.94518937]
[1772265852363,3.41980459,1862.1,1861.2,14.20003198]
[1772265853069,3.41980459,1861.9,1861.2,15.86003198]
[1772265854080,3.41980459,1861.9,1861.2,15.86103198]
[1772265854441,3.41980459,1861.9,1861.2,15.66103198]
[1772265854765,0.001,1862.2,1861.5,8.82729814]
[1772265854966,0.001,1862.2,1861.7,1.34285867]
[1772265855550,3.42080459,1862.2,1861.4,1.662]
[1772265855765,3.42080459,1862.2,1861.5,3.57245553]
[1772265857971,3.42080459,1862.2,1861.6,1.34293081]
[1772265860194,0.001,1862.1,1861.6,1.34293081]
[1772265860480,0.001,1862.1,1861.6,4.91538634]
[1772265861066,0.001,1862.1,1861.6,6.57938634]
[1772265862089,0.001,1862.1,1861.6,6.58038634]
[1772265862288,0.001,1862.1,1861.6,3.00793081]
[1772265862289,3.42080459,1862.1,1861.6,3.00793081]
[1772265862463,3.42080459,1862.1,1861.6,1.34293081]
[1772265864274,0.001,1862.1,1861.7,3.57245553]
[1772265864779,0.001,1862.1,1861.6,1.34293081]
[1772265867894,0.001,1862.1,1860.6,13.12319118]
[1772265867895,3.41980459,1862.0,1860.8,3.57245553]
[1772265868083,3.41980459,1861.9,1861.0,3.57245553]
[1772265869188,3.41980459,1861.9,1861.2,3.57245553]
[1772265869390,4.76337932,1862.1,1861.4,3.57245553]
[1772265869591,3.41980459,1862.0,1861.4,3.57245553]
[1772265871166,3.41980459,1862.0,1861.5,1.34300295]
[1772265872785,0.001,1862.1,1861.6,3.57245553]
[1772265873898,0.001,1862.1,1861.6,4.91531718]
[1772265874401,3.41980459,1863.7,1862.4,3.57245553]
[1772265874616,0.001,1863.6,1862.8,3.57245553]
[1772265874772,0.001,1863.5,1863.0,8.82729814]
[1772265874973,0.001,1863.9,1863.2,3.57245553]
[1772265874974,0.001,1863.7,1863.2,3.57245553]
[1772265875280,0.001,1863.7,1863.2,1.673]
[1772265875281,3.42080459,1863.7,1863.2,1.673]
[1772265875468,0.001,1863.7,1863.2,1.673]
[1772265876174,0.001,1863.7,1863.2,3.01476746]
[1772265876990,0.001,1863.6,1863.2,3.01476746]
[1772265877188,0.001,1863.8,1863.2,3.01476746]
[1772265877483,0.001,1863.8,1863.2,6.58722299]
[1772265877685,0.001,1863.7,1863.3,3.57245553]
[1772265877908,0.001,1863.7,1863.4,1.34163357]
[1772265878088,0.001,1863.7,1863.4,1.674]
[1772265878802,0.001,1863.9,1863.4,1.674]
[1772265878803,0.001,1863.9,1863.4,10.50129814]
[1772265879105,0.001,1863.8,1863.4,10.50129814]
[1772265879600,0.36875275,1864.8,1863.8,3.57245553]
[1772265879787,0.36875275,1864.8,1863.6,25.00812122]
[1772265879788,0.001,1864.6,1864.2,3.57245553]
[1772265879990,0.36875275,1864.8,1864.3,3.01698589]
[1772265879991,0.001,1864.8,1864.3,3.01698589]
[1772265880191,0.001,1864.8,1864.3,4.91344142]
[1772265880400,0.001,1864.8,1864.4,1.677]
[1772265880817,0.001,1864.7,1864.5,1.677]
[1772265881018,3.55701873,1865.1,1864.5,1.677]
[1772265881309,0.001,1865.0,1864.5,1.677]
[1772265881475,3.55701873,1865.0,1864.1,5.25484261]
[1772265881680,3.55701873,1865.0,1864.0,1.34114092]
[1772265881901,3.55701873,1865.0,1864.1,1.677]
[1772265882075,4.81338028,1864.9,1864.1,3.01808426]
[1772265882274,0.001,1866.6,1866.0,3.4876655]
[1772265882499,3.47282583,1867.5,1867.4,7.841074]
[1772265882706,2.62136139,1867.9,1867.5,21.06274976]
[1772265882707,3.47282583,1867.8,1867.5,21.06274976]
[1772265882876,3.47282583,1867.8,1867.6,21.06274976]
[1772265883077,3.47282583,1867.8,1867.5,19.46524976]
[1772265883317,3.47282583,1867.8,1867.2,4.40010616]
[1772265883617,3.47282583,1867.8,1867.4,4.40010616]
[1772265883789,3.47282583,1868.2,1867.5,4.40010616]
[1772265884304,3.47282583,1868.1,1867.3,4.11433176]
[1772265884482,3.47282583,1868.1,1867.4,4.11433176]
[1772265884685,3.47282583,1868.1,1867.6,4.11433176]
[1772265884886,3.47282583,1868.5,1868.0,4.11433176]
[1772265885189,8.72766844,1869.0,1868.2,4.11433176]
[1772265885387,1.33761252,1869.1,1868.2,4.11433176]
[1772265885388,3.47282583,1869.1,1868.2,4.11433176]
[1772265885600,3.47282583,1869.4,1868.7,4.11433176]
[1772265885907,3.42282583,1869.4,1868.7,4.11433176]
[1772265886080,0.001,1869.7,1869.4,4.11433176]
[1772265886280,0.001,1869.7,1869.2,4.11433176]
[1772265886281,4.81095835,1869.7,1869.2,4.11433176]
[1772265886619,0.001,1870.0,1869.7,4.11333176]
[1772265886921,3.47282583,1869.8,1868.5,11.74247659]
[1772265887207,3.47282583,1869.8,1868.6,11.4876655]
[1772265887394,3.47282583,1869.8,1868.6,8.0]
[1772265887578,8.72766844,1869.3,1868.2,4.825807]
[1772265887780,3.47282583,1869.3,1868.2,6.528807]
[1772265888086,3.47282583,1869.2,1868.3,8.0]
[1772265888282,1.33754213,1869.1,1868.3,8.0]
[1772265888994,10.06521057,1869.1,1868.3,8.0]
[1772265889183,4.81036796,1869.1,1868.3,8.0]
[1772265889692,4.81015522,1869.4,1868.3,12.82577011]
[1772265889883,1.33731231,1869.5,1868.4,3.4876655]
[1772265890086,3.15923345,1869.6,1868.4,3.4876655]
[1772265890408,3.15918788,1869.6,1868.6,4.82556553]
[1772265890604,3.15918788,1869.6,1868.5,9.33792918]
[1772265890809,6.63201371,1869.6,1868.5,9.33792918]
[1772265891304,5.34846228,1869.7,1868.5,9.33792918]
[1772265891305,3.47282583,1869.7,1868.6,3.4876655]
[1772265891474,3.47282583,1869.7,1868.5,8.0]
[1772265891887,3.47282583,1869.7,1868.5,11.04196233]
[1772265892090,3.47282583,1869.7,1868.5,14.52962783]
[1772265892304,1.33718442,1869.6,1868.5,14.52962783]
[1772265892675,1.33718442,1869.6,1868.6,1.704]
[1772265892880,4.81001025,1869.6,1868.6,1.704]
[1772265893294,4.81001025,1869.6,1868.7,8.0]
[1772265893494,3.47282583,1869.5,1868.7,8.0]
[1772265894307,1.33732748,1869.4,1868.7,8.0]
[1772265894502,1.33732748,1869.4,1868.7,9.33780468]
[1772265894707,1.33732748,1869.4,1868.7,8.0]
[1772265896322,1.33747057,1869.2,1868.7,8.0]
[1772265896614,1.33747057,1869.2,1868.2,1.33814379]
[1772265896919,1.77438522,1869.2,1868.3,2.97350555]
[1772265897220,0.43470031,1869.1,1868.3,2.97350555]
[1772265897913,0.43470031,1869.1,1867.6,2.73384204]
[1772265897914,0.57909541,1868.9,1867.7,5.12911771]
[1772265898107,2.39809541,1868.8,1867.7,6.76408645]
[1772265898818,1.33782843,1868.7,1867.7,6.76408645]
[1772265899036,1.33782843,1868.7,1868.4,0.0011]
[1772265899332,1.33782843,1868.7,1867.7,8.10261879]
[1772265899538,0.57646151,1868.6,1867.7,2.97350555]
[1772265900442,1.33782843,1868.7,1868.1,0.0011]
[1772265900636,0.57376925,1868.6,1868.1,0.0011]
[1772265900932,0.57111411,1868.4,1868.1,0.0011]
[1772265901110,1.817,1868.3,1867.3,1.3388013]
[1772265901306,1.817,1868.3,1867.3,6.76408645]
[1772265901512,1.817,1868.3,1867.3,8.10291413]
[1772265901713,1.817,1868.3,1867.4,3.7905809]
[1772265902953,1.817,1868.3,1867.5,1.33868808]
[1772265903136,3.15261369,1869.0,1867.6,3.7905809]
[1772265903446,3.15261369,1869.0,1867.8,3.7905809]
[1772265903647,1.33725595,1869.5,1867.9,3.7905809]
[1772265903851,1.33725595,1869.5,1868.0,3.7905809]
[1772265904015,1.33725595,1869.5,1868.2,3.7905809]
[1772265904210,1.33725595,1869.5,1868.4,3.7905809]
[1772265904426,1.815,1869.4,1868.4,3.7905809]
[1772265904616,2.37797799,1869.4,1868.4,3.7905809]
[1772265904832,2.37797799,1869.4,1868.5,2.97350555]
[1772265905171,1.33739902,1869.3,1868.5,2.97350555]
[1772265905454,1.33739902,1869.3,1868.5,6.76408645]
[1772265906363,1.33739902,1869.3,1868.5,2.97350555]
[1772265907142,0.55456434,1869.2,1868.2,3.7905809]
[1772265907837,1.33739902,1869.3,1868.2,5.12874245]
[1772265908035,1.33739902,1869.3,1868.3,3.7905809]
[1772265909745,5.3495961,1869.4,1868.4,3.7905809]
[1772265909953,5.3495961,1869.5,1868.5,3.7905809]
[1772265911650,3.15123751,1869.6,1868.5,3.7905809]
[1772265911822,3.15123751,1869.6,1868.7,3.80282183]
[1772265912018,0.001,1869.2,1868.7,3.80282183]
[1772265912221,0.001,1869.2,1868.8,3.80282183]
[1772265912746,0.001,1869.2,1868.5,3.80282183]
[1772265913651,1.33696989,1869.9,1868.7,3.80282183]
[1772265913826,0.001,1870.0,1868.9,3.80282183]
[1772265914027,0.001,1870.0,1869.1,3.80282183]
[1772265915952,0.001,1870.0,1869.3,3.80282183]
[1772265916520,0.001,1870.3,1869.3,3.80282183]
[1772265916749,0.001,1870.3,1869.6,3.80282183]
[1772265917129,0.001,1870.8,1869.9,3.35251907]
[1772265917350,0.001,1870.8,1870.2,3.80282183]
[1772265917870,0.001,1870.8,1870.4,3.80282183]
[1772265918566,0.001,1870.9,1870.4,3.80282183]
[1772265919024,0.001,1870.9,1869.7,3.80282183]
[1772265919383,3.94627274,1870.9,1869.7,3.80282183]
[1772265919871,1.3363267,1870.8,1869.7,3.80282183]
[1772265920038,1.3363267,1870.8,1869.7,5.13992548]
[1772265920239,1.3363267,1870.8,1869.7,3.80282183]
[1772265920643,5.28159944,1870.8,1869.7,3.80282183]
[1772265921976,1.81,1870.7,1869.7,3.80282183]
[1772265922136,1.81,1870.7,1869.3,3.80282183]
[1772265922137,3.94527274,1870.5,1869.3,3.80282183]
[1772265923333,3.94527274,1870.3,1868.9,6.62350709]
[1772265923584,5.75527274,1870.2,1869.0,3.80282183]
[1772265924161,1.3368269,1870.1,1869.0,3.80282183]
[1772265924335,5.28209964,1870.1,1869.0,3.80282183]
[1772265925163,3.94527274,1870.0,1869.3,0.0011]
[1772265925436,3.94527274,1870.0,1869.0,3.80282183]
[1772265925437,3.94527274,1869.7,1869.1,0.0011]
[1772265925642,5.75427274,1869.6,1869.1,0.0011]
[1772265926055,1.33725595,1869.5,1869.1,0.0011]
[1772265926364,7.29779181,1869.3,1868.0,3.80282183]
[1772265926861,3.94527274,1869.2,1868.0,3.80282183]
[1772265927060,1.81,1869.1,1868.0,3.80282183]
[1772265927233,5.75527274,1869.1,1868.0,3.80282183]
[1772265928062,1.33761369,1869.0,1868.1,3.80282183]
[1772265928263,3.94527274,1868.9,1867.7,3.80282183]
[1772265928841,3.94527274,1868.9,1867.4,0.0011]
[1772265928842,3.94527274,1868.6,1867.4,3.80392183]
[1772265929166,1.809,1868.5,1867.4,3.80392183]
[1772265930168,1.33804324,1868.4,1867.4,3.80392183]
[1772265930760,1.33804324,1868.4,1867.5,3.80282183]
[1772265931766,1.33804324,1868.4,1867.4,0.0011]
[1772265931952,1.33804324,1868.4,1867.4,5.14265759]
[1772265932152,1.33804324,1868.4,1867.5,3.80282183]
[1772265933567,3.94527274,1868.3,1867.4,0.0011]
[1772265933746,3.94527274,1868.2,1867.4,0.0011]
[1772265934151,3.35251907,1868.0,1866.8,3.80282183]
[1772265934347,5.75427274,1867.9,1866.8,3.80282183]
[1772265934666,3.94527274,1867.8,1866.4,3.85639804]
[1772265934854,3.94527274,1867.6,1866.4,3.80282183]
[1772265935572,3.94527274,1867.6,1866.3,1.33951262]
[1772265935766,3.94527274,1867.6,1866.1,3.80282183]
[1772265936159,3.94527274,1867.4,1866.1,5.14248376]
[1772265936361,1.58,1867.3,1866.1,5.14248376]
[1772265936677,1.58,1867.3,1866.1,3.80282183]
[1772265936847,3.94527274,1867.2,1865.8,7.3775342]
[1772265937042,3.94527274,1867.2,1866.5,0.0011]
[1772265937248,3.94527274,1867.2,1865.8,7.3775342]
[1772265937570,3.94527274,1867.2,1866.4,0.0011]
[1772265938374,1.33897488,1867.1,1866.4,0.0011]
[1772265938679,3.94527274,1867.0,1866.4,0.0011]
[1772265939175,3.94527274,1867.0,1866.2,0.0011]
[1772265940145,1.805,1867.0,1866.2,0.0011]
[1772265940374,1.33919005,1866.8,1866.2,0.0011]
[1772265941075,5.38128624,1866.8,1866.2,0.0011]
[1772265941276,1.33919005,1866.8,1866.2,0.0011]
[1772265942157,0.09020693,2215.2,1866.2,0.0011]
[1772265942158,3.99039517,1867.5,1866.4,3.89614976]
[1772265942555,1.33875977,1867.4,1866.4,3.89614976]
[1772265943478,5.32915494,1867.4,1866.4,3.89614976]
[1772265943951,5.32915494,1867.4,1866.4,5.23562539]
[1772265944275,5.32915494,1867.4,1866.4,3.89614976]
[1772265944478,5.32915494,1867.4,1866.4,5.23561895]
[1772265944660,1.33875977,1867.4,1866.5,3.89614976]
[1772265946977,5.32915494,1867.4,1866.3,4.03472139]
[1772265947159,3.99039517,1867.3,1866.2,3.89724976]
[1772265947478,1.806,1867.2,1866.2,3.89724976]
[1772265947672,3.99039517,1867.2,1866.2,3.89724976]
[1772265947868,3.73614026,1867.3,1866.2,5.23684626]
[1772265948073,1.806,1867.2,1866.3,3.89614976]
[1772265948985,1.33897488,1867.1,1866.3,3.89614976]
[1772265949156,1.33897488,1867.1,1866.3,5.23568033]
[1772265949350,1.33897488,1867.1,1866.2,0.0011]
[1772265949557,1.33897488,1867.1,1866.6,0.0011]
[1772265949883,3.14294514,1867.2,1866.6,0.0011]
[1772265950648,3.99039517,1867.1,1866.6,0.0011]
[1772265950848,3.99039517,1867.1,1866.5,0.0011]
[1772265950849,3.73614026,1866.9,1866.5,0.0011]
[1772265951080,1.33919005,1866.8,1866.5,0.0011]
[1772265951253,1.805,1866.7,1866.2,0.0011]
[1772265951872,1.33919005,1866.8,1866.2,0.0011]
[1772265952073,3.14419005,1866.8,1866.2,0.0011]
[1772265953383,7.13458522,1866.8,1866.2,0.0011]
[1772265954750,3.14419005,1866.8,1866.2,0.0011]
[1772265956660,3.14419005,1866.8,1866.2,3.89724976]
[1772265956867,5.35599787,1867.1,1866.3,3.89614976]
[1772265957170,5.35599787,1867.1,1866.4,5.23562682]
[1772265957362,1.33897488,1867.1,1866.4,5.23562682]
[1772265958263,1.33897488,1867.1,1866.5,3.89614976]
[1772265958464,3.14492662,1867.2,1866.5,3.89614976]
[1772265958993,3.14492662,1867.2,1866.2,3.89724976]
[1772265959188,3.14492662,1867.2,1866.2,5.23686581]
[1772265959393,3.14492662,1867.2,1866.3,3.89614976]
[1772265959790,3.14492662,1867.2,1866.2,0.0011]
[1772265959791,3.99039517,1867.1,1866.2,0.0011]
[1772265960470,5.32932179,1867.2,1866.2,0.0011]
[1772265960661,1.805,1867.1,1866.2,3.89724976]
[1772265960990,3.99039517,1866.9,1866.2,0.0011]
[1772265961191,5.32958522,1866.8,1866.2,0.0011]
[1772265961518,1.806,1866.7,1866.2,0.0011]
[1772265961696,1.806,1867.0,1866.5,0.0011]
[1772265963096,0.001,1867.3,1866.6,3.89614976]
[1772265963397,1.33832976,1868.0,1867.1,3.73614026]
[1772265963585,1.33832976,1868.0,1867.2,3.89614976]
[1772265965105,1.33832976,1868.0,1866.9,3.89614976]
[1772265965310,1.33832976,1868.0,1867.0,1.33904659]
[1772265965471,1.33832976,1868.0,1867.0,5.23519635]
[1772265966182,1.33831299,1868.1,1867.4,3.89614976]
[1772265968200,3.99039517,1867.8,1866.5,3.89724976]
[1772265968401,5.79339517,1867.7,1866.6,3.89614976]
[1772265968822,3.99039517,1867.6,1866.5,0.0011]
[1772265969113,3.99039517,1867.4,1866.5,0.0011]
[1772265969274,1.33890317,1867.2,1866.5,0.0011]
[1772265969686,1.33890317,1867.2,1866.5,7.63339002]
[1772265969882,1.33890317,1867.2,1866.6,3.89614976]
[1772265970102,3.14181383,1867.4,1866.7,7.63229002]
[1772265970880,3.14181383,1867.4,1866.7,3.89614976]
[1772265971073,3.14181383,1867.4,1866.7,7.63229002]
[1772265971270,3.14181383,1867.4,1866.7,3.89614976]
[1772265971586,3.14181383,1867.4,1866.7,5.23537421]
[1772265971907,1.33881383,1867.4,1866.7,5.23537421]
[1772265972506,1.33881383,1867.4,1866.7,3.89614976]
[1772265972707,1.33881383,1867.4,1866.7,5.23540623]
[1772265973002,1.33881383,1867.4,1866.7,3.89614976]
[1772265973200,1.33881383,1867.4,1866.7,5.2354083]
[1772265973510,1.33881383,1867.4,1866.7,5.23540816]
[1772265973711,5.35489133,1867.5,1866.7,5.23540455]
[1772265973936,5.35489133,1867.5,1866.5,0.0011]
[1772265973937,3.95087179,1867.4,1866.5,0.0011]
[1772265974220,3.95187179,1867.3,1866.5,0.0011]
[1772265975111,3.95087179,1867.7,1866.6,3.87188831]
[1772265975279,3.95087179,1867.7,1866.5,0.0011]
[1772265975697,5.28948819,1867.6,1866.5,0.0011]
[1772265975922,1.803,1867.5,1866.5,0.0011]
[1772265976279,1.803,1867.4,1866.5,3.87298831]
[1772265978091,1.802,1867.5,1866.6,3.87188831]
[1772265978418,1.3386164,1867.6,1866.7,3.87188831]
[1772265980414,5.35475234,1867.8,1866.8,1.33919005]
[1772265980599,13.81104074,1867.9,1866.8,5.21107836]
[1772265981920,13.81104074,1867.9,1866.5,3.87298831]
[1772265981921,3.95087179,1867.7,1866.5,3.87298831]
[1772265982086,3.95087179,1867.7,1866.5,5.21238606]
[1772265982287,3.95087179,1867.7,1866.5,3.87298831]
[1772265982509,3.95087179,1867.5,1866.5,0.0011]
[1772265982712,1.801,1867.4,1866.5,3.87298831]
[1772265984615,1.33883146,1867.3,1866.6,5.21122185]
[1772265984921,0.001,1868.3,1866.9,3.87188831]
[1772265985223,0.001,1868.3,1866.8,5.22617259]
[1772265985224,5.35331905,1868.2,1867.2,3.87188831]
[1772265985983,3.95087179,1868.1,1866.9,1.663]
[1772265986185,3.95087179,1868.1,1867.0,3.87188831]
[1772265986387,0.001,1867.3,1867.0,3.87188831]
[1772265986609,0.001,1867.3,1867.2,3.87188831]
[1772265986814,1.33832976,1868.0,1867.2,3.87188831]
[1772265987828,5.28920155,1868.0,1866.9,3.87188831]
[1772265987991,5.28920155,1868.0,1866.9,5.21096027]
[1772265988190,1.799,1867.9,1867.0,3.87188831]
[1772265988607,1.33847306,1867.8,1867.1,1.33897488]
[1772265988806,1.33847306,1867.8,1867.1,1.21089488]
[1772265989096,1.33847306,1867.8,1867.0,5.2108825]
[1772265989629,1.798,1867.7,1866.7,5.2111501]
[1772265989817,5.74887179,1867.7,1866.7,5.2111501]
[1772265990820,2.59362965,1868.7,1866.8,3.87188831]
[1772265991127,3.95087179,1868.1,1866.9,3.87188831]
[1772265991337,4.81887179,1868.0,1866.9,3.87188831]
[1772265992828,1.33840141,1867.9,1867.0,1.33904659]
[1772265993041,3.13640141,1867.9,1867.0,1.33904659]
[1772265993693,3.95087179,1867.8,1866.7,1.33921172]
[1772265993898,1.33840141,1867.9,1866.7,5.22617259]
[1772265994096,1.33840141,1867.9,1866.8,3.87188831]
[1772265994297,5.2892732,1867.9,1866.8,3.87188831]
[1772265994928,5.2892732,1867.9,1866.9,1.33911832]
[1772265995126,3.95087179,1867.8,1866.9,1.33911832]
[1772265995426,1.33840141,1867.9,1867.0,3.87188831]
[1772265996123,3.95087179,1867.8,1866.9,1.33911832]
[1772265996923,1.33854473,1867.7,1866.8,9.22854615]
[1772265997222,4.04324806,1867.7,1866.7,3.87188831]
[1772265997406,1.796,1867.6,1866.7,3.87188831]
[1772265997607,3.95087179,1867.5,1866.6,1.34042794]
[1772265997822,3.95087179,1867.5,1867.0,0.0011]
[1772265998039,1.796,1867.4,1867.0,0.0011]
[1772265998713,1.796,1867.3,1867.0,0.0011]
[1772265999137,1.33890317,1867.2,1867.0,0.0011]
[1772266000155,3.13487779,1867.3,1867.0,0.0011]
[1772266000359,1.796,1867.3,1867.0,0.0011]
[1772266001742,3.13468808,1867.5,1867.0,0.0011]
[1772266002554,6.9812745,1867.5,1867.0,0.0011]
[1772266003758,3.84658642,1867.4,1867.0,0.0011]
[1772266004338,3.84658642,1867.1,1866.5,0.0011]
[1772266004547,1.797,1867.0,1866.5,0.0011]
[1772266005359,3.84658642,1866.9,1866.5,0.0011]
[1772266005764,3.84658642,1866.7,1866.5,0.0011]
[1772266005979,1.799,1866.6,1866.5,0.0011]
[1772266006140,1.799,1866.6,1866.3,0.0011]
[1772266006676,1.33919005,1866.8,1866.3,0.0011]
[1772266006677,1.799,1866.8,1866.3,0.0011]
[1772266008357,3.13819448,1866.8,1866.3,0.0011]
[1772266008556,5.18548959,1867.3,1866.3,3.93646577]
[1772266008757,3.13790317,1867.2,1866.3,3.93646577]
[1772266008971,6.98448959,1867.2,1866.3,3.93646577]
[1772266010278,6.98448959,1867.2,1866.4,1.34057706]
[1772266010977,6.98448959,1867.2,1866.4,0.0011]
[1772266011977,3.13790317,1867.2,1866.4,3.93646577]
[1772266012475,1.798,1867.1,1866.6,3.93536577]
[1772266013282,3.13590317,1867.2,1866.6,3.93536577]
[1772266013650,1.797,1867.1,1866.6,3.93536577]
[1772266014481,1.33904659,1867.0,1866.6,3.93536577]
[1772266014791,1.797,1867.1,1866.6,5.27469542]
[1772266015087,1.33891195,1867.2,1866.6,5.27469542]
[1772266015280,3.13491195,1867.2,1866.6,3.93536577]
[1772266015474,3.13491195,1867.2,1866.6,5.27469904]
[1772266016564,1.796,1867.2,1866.6,5.27469904]
[1772266016889,3.13492093,1867.2,1866.5,1.33936869]
[1772266017782,3.13492024,1867.2,1866.5,5.27473446]
[1772266017957,3.13490921,1867.2,1866.5,5.27473446]
[1772266018800,1.795,1867.1,1866.5,5.27473446]
[1772266019856,1.795,1867.1,1866.5,3.93536577]
[1772266020088,5.64158642,1867.1,1866.4,1.34055813]
[1772266020351,1.794,1867.0,1866.4,0.0011]
[1772266020558,5.18570474,1866.9,1866.4,0.0011]
[1772266020990,5.18570474,1866.9,1866.3,0.0011]
[1772266020991,3.84658642,1866.8,1866.3,0.0011]
[1772266021896,3.84658642,1866.7,1866.3,0.0011]
[1772266022111,3.84658642,1866.1,1864.9,3.93536577]
[1772266022270,1.795,1866.5,1865.4,3.93536577]
[1772266022592,1.795,1866.5,1865.2,1.34033883]
[1772266022593,5.18613525,1866.3,1865.2,1.34033883]
[1772266022790,5.18613525,1866.3,1865.3,9.16153836]
[1772266022971,1.33954883,1866.3,1865.4,3.93536577]
[1772266023166,3.84658642,1866.2,1865.5,0.0022]
[1772266023370,5.64558642,1866.1,1865.6,0.0022]
[1772266023722,5.64558642,1866.1,1865.4,0.0022]
[1772266024055,3.84658642,1866.0,1865.5,0.0022]
[1772266024292,3.84658642,1866.0,1865.3,0.0022]
[1772266024668,1.339836,1865.9,1865.3,0.0022]
[1772266025067,1.339836,1865.9,1865.4,0.0022]
[1772266025296,1.339836,1865.9,1865.3,0.0022]
[1772266025589,1.339836,1865.9,1865.2,0.0022]
[1772266026089,5.18642242,1865.9,1865.2,0.0022]
[1772266026419,3.84658642,1865.8,1865.2,0.0022]
[1772266026565,1.34012329,1865.5,1864.7,5.27606099]
[1772266026767,1.34012329,1865.5,1864.8,0.0022]
[1772266026768,5.18670971,1865.5,1864.8,0.0022]
[1772266027094,5.18670971,1865.5,1864.6,0.0022]
[1772266027694,5.18670971,1865.5,1864.6,1.34296532]
[1772266028795,5.18670971,1865.5,1864.6,0.0022]
[1772266028985,3.84658642,1865.4,1864.6,0.0022]
[1772266029298,1.34012329,1865.5,1864.6,0.0022]
[1772266029299,3.84658642,1865.2,1864.6,0.0022]
[1772266030169,1.797,1865.2,1864.7,0.0022]
[1772266030872,3.13736696,1865.2,1864.7,0.0022]
[1772266031273,1.799,1865.1,1864.7,0.0022]
[1772266031497,1.799,1865.1,1864.8,0.0022]
[1772266031700,1.799,1865.1,1864.7,0.0022]
[1772266032499,1.799,1865.1,1864.7,3.93943574]
[1772266032707,1.798,1865.3,1864.7,3.93943574]
[1772266032918,1.798,1865.3,1864.8,1.34282634]
[1772266033135,1.797,1865.6,1864.9,3.93723574]
[1772266033313,1.743,1865.6,1864.9,3.93943574]
[1772266033617,1.743,1865.6,1865.0,0.0022]
[1772266033993,1.743,1865.6,1865.1,0.0022]
[1772266034306,1.743,1865.6,1864.8,0.0022]
[1772266034307,5.60552509,1865.6,1864.8,0.0022]
[1772266034485,7.60328404,1865.4,1864.8,0.0022]
[1772266034687,7.60328404,1865.4,1864.5,1.34079464]
[1772266034919,5.20279207,1865.3,1864.6,0.0022]
[1772266035220,5.20279207,1865.3,1864.6,3.93723574]
[1772266035221,1.34026698,1865.3,1864.6,3.93723574]
[1772266035390,1.797,1865.2,1864.6,3.93723574]
[1772266035585,1.797,1865.2,1864.8,0.0011]
[1772266036018,1.797,1865.2,1864.9,0.0022]
[1772266036422,1.797,1865.2,1864.8,0.0011]
[1772266036601,1.797,1865.2,1864.9,0.0022]
[1772266036918,3.1373572,1865.2,1864.9,0.0022]
[1772266037120,3.1373572,1865.2,1864.8,0.0011]
[1772266037121,3.13819513,1865.4,1865.0,0.0022]
[1772266037332,3.13819513,1865.4,1864.9,0.0022]
[1772266038297,1.34019513,1865.4,1864.9,0.0022]
[1772266038499,1.798,1865.3,1864.9,0.0022]
[1772266038722,1.798,1865.3,1864.8,0.0011]
[1772266038723,1.798,1865.2,1865.0,0.0022]
[1772266038919,1.3397642,1866.0,1865.1,3.93723574]
[1772266039125,1.798,1865.9,1865.1,3.93723574]
[1772266039424,1.798,1865.9,1865.2,0.0022]
[1772266039719,1.799,1865.8,1865.2,0.0022]
[1772266039935,1.799,1865.8,1865.3,0.0022]
[1772266040138,1.799,1865.8,1865.2,0.0022]
[1772266040339,1.798,1865.7,1865.2,3.44706085]
[1772266040535,1.798,1865.9,1865.3,3.44706085]
[1772266040821,1.798,1865.9,1865.3,3.44486085]
[1772266041123,3.1378983,1865.9,1865.3,4.78509408]
[1772266041505,3.13784085,1865.9,1865.2,1.34029249]
[1772266041701,1.33984085,1865.9,1865.3,0.0022]
[1772266041906,1.798,1865.8,1865.3,0.0022]
[1772266042402,3.86252509,1865.7,1865.4,0.0022]
[1772266042603,3.86252509,1865.7,1864.9,1.34048496]
[1772266042802,3.86252509,1865.7,1865.0,0.0022]
[1772266043041,3.86252509,1865.7,1864.9,0.0022]
[1772266043240,5.20257654,1865.6,1864.9,0.0022]
[1772266043399,3.86252509,1865.5,1865.0,0.0022]
[1772266043726,5.65952509,1865.4,1864.9,0.0022]
[1772266044627,5.36015234,1865.7,1865.0,0.0022]
[1772266044628,3.86252509,1865.5,1865.0,0.0022]
[1772266044833,3.86252509,1865.5,1864.9,0.0022]
[1772266045137,3.86252509,1865.8,1865.0,7.23636849]
[1772266045307,5.2024559,1865.8,1865.1,1.3404107]
[1772266047043,5.65952509,1865.9,1865.2,0.0022]
[1772266047402,6.99941281,1865.9,1865.2,0.0022]
[1772266047631,0.001,1865.4,1865.2,0.0022]
[1772266049161,3.86252509,1865.9,1865.2,3.4933725]
[1772266049346,5.65852509,1865.9,1865.3,3.74295895]